Cogmind - Beta 12 X4 @@@ ROGUE MODE // 2022.12.22 @ 16:16:54 Player: Lunatic Blue Result: Destroyed by Enhanced Grunt with Neutron Cannon Performance ------------- Evolutions (3) 1500 Regions Visited (9) 1800 Robots Destroyed (102) 510 Value Destroyed (3198) 3198 Prototype IDs (15) 300 Alien Tech Used (0) 0 Bonus (253) 253 TOTAL SCORE: 7561 Bonus ------- High Alert Combat Kills 11 Follower Combat Kills 91 Met Data Miner 300 Friendly Fire -149 Cogmind --------- Core Integrity 0/700 Matter 27/300 Energy 100/100 System Corruption 16% Temperature Cool (0) Movement Core (1350) Ox26 Location -7/Data Miner Parts ------- > --- POWER (2) -------- (None) > --- PROPULSION (3) --- (None) > --- UTILITY (5) ------ Huge Storage Unit Improved Signal Interpreter Advanced Terrain Scan Processor > --- WEAPON (3) ------- (None) > --- INVENTORY (25) --- Light Treads Light Treads Improved Treads Coolant Injector Huge Storage Unit Improved Terrain Scanner Makeshift Salvage Targeting Computer Improved Target Analyzer Transmission Jammer Medium Armor Plating Medium Armor Plating Hardened Light Armor Plating Improved Light Armor Plating Graphene Brace Improved Shield Generator Authchip [Weapon] Long-range Tractor Beam EM Pulse Cannon Heavy Rocket Launcher Dirty Bomb Trap Dirty Bomb Trap Peak State ------------ > --- POWER ------------ Improved Deuterium Engine Micro Fission Core > --- PROPULSION ------- Light Treads Light Treads Light Treads > --- UTILITY ---------- Improved Cooling System Huge Storage Unit Improved Signal Interpreter Advanced Terrain Scan Processor Layered Light Armor Plating > --- WEAPON ----------- Improved Assault Rifle Minigun Enhanced Autogun > --- INVENTORY -------- Micro Nuclear Core Light Treads Light Treads Light Treads Improved Treads Coolant Injector Huge Storage Unit Improved Terrain Scanner Makeshift Salvage Targeting Computer Improved Target Analyzer Transmission Jammer Medium Armor Plating Medium Armor Plating Hardened Light Armor Plating Hardened Heavy Armor Plating Improved Light Armor Plating Graphene Brace Improved Shield Generator Authchip [Weapon] Long-range Tractor Beam EM Pulse Cannon Heavy Rocket Launcher Heavy Rocket Launcher Powered Hammer [Rating: 47] Favorites ----------- Power Light Nuclear Core Engine Improved Deuterium Engine Power Core Light Nuclear Core Propulsion Light Treads Treads Light Treads Leg Aluminum Leg Wheel Armored Wheel Utility Huge Storage Unit Device Cooling System Storage Huge Storage Unit Processor Improved Signal Interpreter Hackware Hacking Suite Protection Hardened Light Armor Plating Weapon Heavy Assault Rifle Energy Gun Heavy EM Pulse Gun Energy Cannon Particle Cannon Ballistic Gun Heavy Assault Rifle Launcher Heavy Rocket Launcher Impact Weapon Powered Hammer Build | -11 -10 -10 -9 -9 -8 -7 -7 -7 -7 ------- Run | Scr Mat Min Mat Min Mat Fac Low Low Dat Slots Evolved 6 | . . . 2 . 2 2 . . . Power 1 | . . . . . . 1 . . . Propulsion 1 | . . . 1 . . . . . . Utility 3 | . . . 1 . 2 . . . . Weapon 1 | . . . . . . 1 . . . Parts Attached 120 | 7 13 . 19 1 18 29 14 15 4 Power 9 | 1 . . 1 . 1 4 . 2 . Engine 4 | 1 . . . . . 3 . . . Core 5 | . . . 1 . 1 1 . 2 . Reactor . | . . . . . . . . . . Propulsion 29 | 2 5 . 8 . 5 7 1 1 . Treads 20 | 1 2 . 3 . 5 7 1 1 . Leg 1 | . 1 . . . . . . . . Wheel 8 | 1 2 . 5 . . . . . . Hover . | . . . . . . . . . . Flight . | . . . . . . . . . . Utility 33 | 2 2 . 2 1 4 10 6 4 2 Device 15 | 1 1 . . 1 1 5 4 2 . Storage 4 | 1 1 . . . 1 1 . . . Processor 3 | . . . . . . 2 1 . . Hackware 1 | . . . . . 1 . . . . Protection 10 | . . . 2 . 1 2 1 2 2 Artifact . | . . . . . . . . . . Weapon 49 | 2 6 . 8 . 8 8 7 8 2 Energy Gun 8 | 1 . . 3 . 2 2 . . . Energy Cannon 6 | . 3 . 3 . . . . . . Ballistic Gun 20 | 1 1 . 1 . 4 6 4 3 . Ballistic Cannon . | . . . . . . . . . . Launcher 12 | . 2 . 1 . 2 . 3 3 1 Special Weapon . | . . . . . . . . . . Impact Weapon 3 | . . . . . . . . 2 1 Slashing Weapon . | . . . . . . . . . . Piercing Weapon . | . . . . . . . . . . Special Melee Weapon . | . . . . . . . . . . Unidentified Prototypes 4 | . . . 2 . 1 1 . . . Corrupted Parts 2 | . . . . . 1 . . 1 . System Corruption 11 | . . . . . 1 . . 10 . Parts Lost 22 | . . . 1 . 2 5 2 3 9 Power 8 | . . . 1 . 1 2 . 2 2 Propulsion 6 | . . . . . . 1 1 1 3 Utility 3 | . . . . . . 1 . . 2 Weapon 5 | . . . . . 1 1 1 . 2 Highest Loss Streak 9 | . . . 1 . 1 2 2 3 9 To Critical Strikes . | . . . . . . . . . . Average Slot Usage (%) 98 | . 99 100 99 100 99 98 99 95 88 Engine 6 | . 14 14 1 . . 10 7 1 . Core 5 | . . . 9 11 8 2 7 8 13 Treads 20 | . 13 14 11 11 23 23 22 23 20 Wheel 4 | . 13 14 22 22 3 . . . . Device 15 | . 14 14 11 11 17 17 14 12 5 Storage 8 | . 14 14 11 11 9 7 7 7 7 Processor 4 | . . . . . . 1 12 15 15 Hackware 2 | . . . . . 8 2 . . . Protection 5 | . . . 11 11 9 7 2 2 6 Energy Gun 4 | . 6 . 2 22 15 . . . . Energy Cannon 3 | . 15 28 18 . . . . . . Ballistic Gun 14 | . 6 . . . 2 22 22 21 15 Naked Turns . | . . . . . . . . . . Heaviest Build 116 | 11 52 52 57 58 99 116 114 110 115 Greatest Support 63 | 20 10 10 26 24 63 60 60 60 60 Greatest Overweight (x) 38 | 1 5 5 2 2 4 1 1 1 38 Average Overweight (x) 1 | . 4 5 2 2 1 1 1 1 1 Largest Inventory Capacity 25 | 8 20 20 20 20 25 25 25 25 25 Average Capacity 23 | 7 18 20 20 20 24 25 25 25 25 Most Carried 25 | 6 20 20 20 20 25 25 25 25 25 Average Carried 22 | 3 16 20 19 20 22 24 24 24 24 Final Capacity 25 | 8 20 20 20 20 25 25 25 25 25 Final Carried 25 | 6 20 20 20 20 24 25 25 25 21 Class Distribution -------------------- 41% | Scavenger-Tank 25% | Mutant 15% | Scavenger-Mutant 13% | Scavenger-Skirmisher 3% | Scavenger-Gunner Dominant Class ---------------- Mutant | -10/Materials Mutant | -10/Mines Mutant | -9/Materials Mutant | -9/Mines Scavenger-Mutant | -8/Materials Scavenger-Tank | -7/Factory Scavenger-Skirmisher | -7/Lower Caves Scavenger-Skirmisher | -7/Lower Caves Scavenger-Tank | -7/Data Miner Resources | -11 -10 -10 -9 -9 -8 -7 -7 -7 -7 ----------- Run | Scr Mat Min Mat Min Mat Fac Low Low Dat Matter Collected 2449 | 270 178 . 225 10 151 973 259 383 . Remotely 215 | . . . . . . 98 117 . . Salvage Created 3585 | 75 343 41 589 13 740 1042 272 400 70 Parts 222 | 6 30 4 33 2 47 72 5 20 3 Haulers Intercepted 7 | . 1 . 2 . 3 1 . . . Recyclers Shooed 3 | 1 . . . . . 2 . . . Parts Field Recycled . | . . . . . . . . . . Retrieved Matter . | . . . . . . . . . . Parts Self-Destructed 25 | . . . . . . . 5 20 . Prevented 8 | . . . . . . . . 8 . Kills | -11 -10 -10 -9 -9 -8 -7 -7 -7 -7 ------- Run | Scr Mat Min Mat Min Mat Fac Low Low Dat Combat Hostiles Destroyed 76 | . 10 3 12 1 14 15 9 11 1 Guns 30 | . 2 . 1 1 5 15 3 3 . Cannons 16 | . 3 3 10 . . . . . . AOE 30 | . 5 . 1 . 9 . 6 8 1 Classes Destroyed 17 | 2 6 . 2 . . 3 1 3 . Worker 3 | . 1 . . . 1 1 . . . Builder 2 | . 1 . . . 1 . . . . Tunneler 2 | 1 . . . . . 1 . . . Hauler 7 | . 1 . 2 . 3 1 . . . Recycler 3 | 1 . . . . 1 1 . . . Minesweeper 1 | . . . . . . . . 1 . Operator 4 | . . . 1 . 1 2 . . . Watcher 3 | . 1 . 1 . . 1 . . . Swarmer 20 | . 4 3 . 1 6 . 2 4 . Grunt 36 | . 6 . 10 . 7 4 4 5 . Brawler 1 | . . . . . . . . 1 . Duelist 2 | . . . . . . . 2 . . Sentry 8 | . . . 2 . 2 3 1 . . Hunter 2 | . . . . . . 2 . . . Programmer 6 | . . . . . . 5 . 1 . Heavy 1 | . . . . . . 1 . . . Enhanced Grunt 1 | . . . . . . . . . 1 Tinkerer 1 | . . . . . . . . 1 . Best Kill Streak 6 | 2 4 5 6 1 4 3 4 4 1 Combat Bots Only 5 | . 4 3 5 1 4 3 4 4 1 Max Kills in Single Turn 3 | 1 3 2 1 1 3 1 2 3 1 Gunslinging . | . . . . . . . . . . Exploded 3 | . 3 . 1 . 3 . 2 3 1 Melee . | . . . . . . . . . . Uniques/NPCs Destroyed . | . . . . . . . . . . Combat | -11 -10 -10 -9 -9 -8 -7 -7 -7 -7 -------- Run | Scr Mat Min Mat Min Mat Fac Low Low Dat Damage Taken 5041 | 7 387 81 301 . 296 1158 610 525 1676 Core 937 | . 159 17 12 . 48 155 83 78 385 Absorbed by Shields 270 | . . . . . . 212 58 . . Core Remaining (%) 79 | 100 . 29 . 97 91 . . . . Volleys Fired 208 | 9 31 4 34 1 27 61 21 15 5 Largest 3 | 2 2 2 2 2 2 3 3 3 1 Hottest 136 | 60 136 136 136 90 90 71 73 87 39 Shots Fired 461 | 18 49 8 64 2 49 178 49 39 5 Gun 341 | 18 18 . 6 2 43 178 42 34 . Cannon 90 | . 28 8 54 . . . . . . Launcher 30 | . 3 . 4 . 6 . 7 5 5 Special . | . . . . . . . . . . Kinetic 275 | 9 14 . . . . 176 42 34 . Thermal 103 | 9 32 8 54 . . . . . . Explosive 30 | . 3 . 4 . 6 . 7 5 5 Electromagnetic 53 | . . . 6 2 43 2 . . . Robot Hit Streak 20 | 4 8 1 7 1 10 20 8 8 1 Robot Miss Streak 4 | 1 4 2 3 1 3 3 2 2 1 Penetration Max . | . . . . . . . . . . Secondary Targets 2 | . . . . . 1 . 1 . . Max Gunslinging Chain 1 | . . . . . 1 . 1 . . Shots Hit Robots 274 | 12 25 3 36 1 27 112 30 26 2 Core Hits 170 | 4 19 3 17 1 31 48 19 21 7 Critical Kills . | . . . . . . . . . . Critical Parts Destroyed 1 | . . . . . . 1 . . . Critical Strikes 1 | . . . . . . 1 . . . Destroy 1 | . . . . . . 1 . . . Melee Attacks 9 | . . . . . . . . 8 1 Impact 9 | . . . . . . . . 8 1 Slashing . | . . . . . . . . . . Piercing . | . . . . . . . . . . Sneak Attacks 2 | . . . . . . . . 1 1 Combat Hostiles . | . . . . . . . . . . Follow-up Attacks . | . . . . . . . . . . Damage Inflicted 8120 | 132 729 102 994 13 1235 1915 1146 1303 551 Guns 3409 | 118 92 . 68 13 423 1857 457 381 . Cannons 1111 | . 315 102 694 . . . . . . Explosions 3260 | . 322 . 232 . 808 . 689 782 427 Melee 264 | . . . . . . . . 140 124 Ramming 76 | 14 . . . . 4 58 . . . Kinetic 2779 | 49 70 . . . . 1822 457 381 . Thermal 1398 | 69 337 102 694 . 196 . . . . Explosive 3064 | . 322 . 232 . 612 . 689 782 427 Electromagnetic 539 | . . . 68 13 423 35 . . . Impact 264 | . . . . . . . . 140 124 Slashing . | . . . . . . . . . . Piercing . | . . . . . . . . . . Highest Corruption 16 | . . . . . 1 5 5 16 16 Average Corruption 4 | . . . . . 1 1 5 8 16 Corruption Purged . | . . . . . . . . . . Corruption Blocked . | . . . . . . . . . . Effects 78 | . . . . . 5 16 18 30 9 Message Errors 14 | . . . . . . 1 5 7 1 Matter Fused 22 | . . . . . 2 2 8 8 2 Heat Flow Errors 12 | . . . . . 1 3 2 4 2 Energy Discharges 15 | . . . . . . 5 2 6 2 Parts Rejected 1 | . . . . . . . . . 1 Data Loss (minor) 5 | . . . . . . 2 1 1 1 Data Loss (major) 3 | . . . . . 1 . . 2 . Misfires 4 | . . . . . 1 1 . 2 . Weapon Failures 2 | . . . . . . 2 . . . Overload Shots . | . . . . . . . . . . Overflow Damage 266 | . 14 . 14 . 25 . 36 52 125 Projectiles 10 | . . . 10 . . . . . . Explosions 96 | . 14 . 4 . 25 . 36 6 11 Melee 160 | . . . . . . . . 46 114 Knockbacks 1 | . . . . . . . . . 1 Impact 1 | . . . . . . . . . 1 Kinetic . | . . . . . . . . . . Secondary . | . . . . . . . . . . Self-Inflicted Damage 410 | 7 88 . . . 67 38 50 107 53 Shots 9 | . 2 . . . 2 . 1 2 2 Rammed 2 | 1 . . . . . 1 . . . Targets Rammed 3 | 1 . . . . 1 1 . . . Kicked . | . . . . . . . . . . Crushed 1 | . . . . . 1 . . . . Highest Temperature 291 | 40 240 180 291 . 194 254 186 229 176 Average Temperature 78 | 19 90 95 76 . 114 125 49 93 54 Received Heat Transfer 823 | . 123 . 168 . 108 189 181 54 . Siege Activations . | . . . . . . . . . . Robots Corrupted . | . . . . . . . . . . Combat Hostiles . | . . . . . . . . . . Parts Fried 3 | . . . . . 3 . . . . Impact Corruptions 2 | . . . . . . . . 1 1 Robots Melted . | . . . . . . . . . . Combat Hostiles . | . . . . . . . . . . Parts Melted 4 | . 1 1 1 . . 1 . . . Heat Transferred 2361 | 150 605 185 1221 . 200 . . . . Parts Sabotaged . | . . . . . . . . . . Parts Stolen . | . . . . . . . . . . Parts Stripped . | . . . . . . . . . . Power Chain Reactions 2 | . . . . . 2 . . . . Missiles Intercepted . | . . . . . . . . . . Alert | -11 -10 -10 -9 -9 -8 -7 -7 -7 -7 ------- Run | Scr Mat Min Mat Min Mat Fac Low Low Dat Peak Influence 381 | 10 363 147 233 87 381 128 . . . Initial 62 | . 6 62 57 27 . 2 . . . Average 83 | 2 134 139 98 39 140 55 . . . Maximum Alert Level 2 | . 1 . 1 . 2 . . . . Low Security (%) 88 | 100 76 100 90 100 55 100 . . . Level 1 11 | . 23 . 9 . 44 . . . . Level 2 . | . . . . . . . . . . Level 3 . | . . . . . . . . . . Level 4 . | . . . . . . . . . . Level 5 . | . . . . . . . . . . High Security . | . . . . . . . . . . Max Security . | . . . . . . . . . . Squads Dispatched 14 | . 3 . 2 . 2 7 . . . Investigation 8 | . 3 . 2 . 2 1 . . . Extermination 3 | . . . . . . 3 . . . Reinforcement 3 | . . . . . . 3 . . . Assault . | . . . . . . . . . . Garrison . | . . . . . . . . . . Intercept . | . . . . . . . . . . Searches Triggered . | . . . . . . . . . . Construction Impeded . | . . . . . . . . . . Haulers Reinforced . | . . . . . . . . . . Active Scanning Responses . | . . . . . . . . . . Cargo Convoy Interrupts . | . . . . . . . . . . Stealth | -11 -10 -10 -9 -9 -8 -7 -7 -7 -7 --------- Run | Scr Mat Min Mat Min Mat Fac Low Low Dat Distress Signals 2 | . . . 1 . . 1 . . . Communications Jammed . | . . . . . . . . . . Distress Signals . | . . . . . . . . . . Times Spotted 104 | . 19 2 16 3 19 20 10 11 4 Peak Tracking Total 6 | . 6 2 4 3 6 4 4 4 4 Tactical Retreats 7 | . 2 . 1 . 3 1 . . . Traps | -11 -10 -10 -9 -9 -8 -7 -7 -7 -7 ------- Run | Scr Mat Min Mat Min Mat Fac Low Low Dat Traps Triggered 2 | . 1 . . . 1 . . . . Indirectly . | . . . . . . . . . . Trap Hack Attempts . | . . . . . . . . . . Triggered . | . . . . . . . . . . Disarmed . | . . . . . . . . . . Reprogrammed . | . . . . . . . . . . Reused . | . . . . . . . . . . Traps Extracted . | . . . . . . . . . . Installed . | . . . . . . . . . . Triggered 5 | . . . . . . . . 5 . Most Traps Carried 2 | . . . . . . . . 2 2 Machines | -11 -10 -10 -9 -9 -8 -7 -7 -7 -7 ---------- Run | Scr Mat Min Mat Min Mat Fac Low Low Dat Machines Disabled 6 | . 1 1 1 . 1 . . 1 1 Max in Single Turn 1 | . 1 1 1 . 1 . . 1 1 Garrison Access 1 | . . . . . . 1 . . . Machines Sabotaged . | . . . . . . . . . . Overloaded Fab Kills . | . . . . . . . . . . Hacking | -11 -10 -10 -9 -9 -8 -7 -7 -7 -7 --------- Run | Scr Mat Min Mat Min Mat Fac Low Low Dat Machines Accessed 29 | . 5 . 7 . 5 7 1 . 4 Terminals 17 | . 3 . 7 . 4 3 . . . Fabricators 2 | . . . . . . 2 . . . Repair Stations . | . . . . . . . . . . Recycling Units 3 | . 2 . . . 1 . . . . Scanalyzers 1 | . . . . . . 1 . . . Garrison Access 1 | . . . . . . 1 . . . Total Hacks 105 | . 10 . 34 . 12 17 1 . 31 Successful 65 | . 5 . 15 . 4 9 1 . 31 Failed 39 | . 5 . 18 . 8 8 . . . Catastrophic 6 | . 1 . 2 . 2 1 . . . Database Lockouts 1 | . . . 1 . . . . . . Manual 39 | . 5 . 21 . 11 2 . . . Terminals 59 | . 8 . 34 . 11 6 . . . Fabricators 6 | . . . . . . 6 . . . Repair Stations . | . . . . . . . . . . Recycling Units 3 | . 2 . . . 1 . . . . Scanalyzers 3 | . . . . . . 3 . . . Garrison Access 2 | . . . . . . 2 . . . Terminal Hacks 55 | . 3 . 14 . 3 3 1 . 31 Record 12 | . . . 1 . . . . . 11 Part Schematic 12 | . . . . . . 1 . . 11 Robot Schematic 6 | . . . . . . . . . 6 Robot Analysis 3 | . 1 . 2 . . . . . . Prototype ID Bank 4 | . . . 1 . . . . . 3 Open Door 1 | . . . . . . . 1 . . Branch Access Points 1 | . . . . . 1 . . . . Emergency Access Points 1 | . . . 1 . . . . . . Terminal Index 2 | . . . 2 . . . . . . Alert Level 1 | . . . 1 . . . . . . Unreport Threat 5 | . 1 . 2 . 2 . . . . Hauler Manifests 2 | . . . 1 . . 1 . . . Zone Layout 5 | . 1 . 3 . . 1 . . . Fabricator Hacks 2 | . . . . . . 2 . . . Network Status 1 | . . . . . . 1 . . . Load Schematic 1 | . . . . . . 1 . . . Repair Station Hacks . | . . . . . . . . . . Recycling Unit Hacks . | . . . . . . . . . . Scanalyzer 2 | . . . . . . 2 . . . Insert Component 1 | . . . . . . 1 . . . Analyze 1 | . . . . . . 1 . . . Garrison Access Hacks 1 | . . . . . . 1 . . . Seal Access 1 | . . . . . . 1 . . . Unauthorized Hacks 5 | . 2 . 1 . 1 1 . . . Terminals 1 | . . . 1 . . . . . . Botnet 1 | . . . 1 . . . . . . Fabricators 1 | . . . . . . 1 . . . Recompile 1 | . . . . . . 1 . . . Repair Stations . | . . . . . . . . . . Recycling Units 3 | . 2 . . . 1 . . . . Tunnel 3 | . 2 . . . 1 . . . . Scanalyzers . | . . . . . . . . . . Garrison Access . | . . . . . . . . . . Data Cores Recovered 2 | . . . . . 1 1 . . . Used . | . . . . . . . . . . Hacking Detections 19 | . 3 . 7 . 4 5 . . . Full Trace Events 2 | . . . 2 . . . . . . Feedback Events . | . . . . . . . . . . Feedback Blocked . | . . . . . . . . . . Robot Schematics Acquired 6 | . . . . . . . . . 6 Robots Built . | . . . . . . . . . . Authchips . | . . . . . . . . . . Time . | . . . . . . . . . . Total Robot Build Rating . | . . . . . . . . . . Part Schematics Acquired 13 | . . . . . . 2 . . 11 Parts Built . | . . . . . . . . . . Authchips . | . . . . . . . . . . Time . | . . . . . . . . . . Total Part Build Rating . | . . . . . . . . . . Parts Repaired . | . . . . . . . . . . Time . | . . . . . . . . . . Parts Recycled . | . . . . . . . . . . Recycled Matter . | . . . . . . . . . . Retrieved Matter . | . . . . . . . . . . Retrieved Components . | . . . . . . . . . . Parts Scanalyzed 1 | . . . . . . 1 . . . Part Schematics Acquired 1 | . . . . . . 1 . . . Parts Damaged . | . . . . . . . . . . Bothacking | -11 -10 -10 -9 -9 -8 -7 -7 -7 -7 ------------ Run | Scr Mat Min Mat Min Mat Fac Low Low Dat Used RIF Installer . | . . . . . . . . . . Robots Hacked . | . . . . . . . . . . Non-combat . | . . . . . . . . . . Combat . | . . . . . . . . . . Robot Hacks Applied . | . . . . . . . . . . Relay Couplers Released 3 | . . . . . . 3 . . . Programmers 3 | . . . . . . 3 . . . Fabnet Peak Effective % . | . . . . . . . . . . Robots Rewired 1 | . . . . . . 1 . . . Allies Hacked . | . . . . . . . . . . Hacks Repelled . | . . . . . . . . . . Allies | -11 -10 -10 -9 -9 -8 -7 -7 -7 -7 -------- Run | Scr Mat Min Mat Min Mat Fac Low Low Dat Total Allies 4 | . . . . 3 . 1 . . . Largest Group 3 | . . . . 3 2 1 . . . Highest-Rated Group 40 | . . . . 40 32 16 . . . Highest-Rated Ally 16 | . . . . 16 16 16 . . . Total Orders . | . . . . . . . . . . Ally Attacks 43 | . . . . 2 27 14 . . . Total Damage 507 | . . . . 28 310 169 . . . Kills 5 | . . . . 2 2 1 . . . Allies Corrupted . | . . . . . . . . . . Allies Melted . | . . . . . . . . . . Intel | -11 -10 -10 -9 -9 -8 -7 -7 -7 -7 ------- Run | Scr Mat Min Mat Min Mat Fac Low Low Dat Robot Analysis Total 3 | . 1 . 2 . . . . . . Derelict Logs Recovered 4 | . . . . 1 . . 2 1 . Drone Launches . | . . . . . . . . . . Drone Recoveries . | . . . . . . . . . . Exploration | -11 -10 -10 -9 -9 -8 -7 -7 -7 -7 ------------- Run | Scr Mat Min Mat Min Mat Fac Low Low Dat Turns Passed 7241 | 108 641 64 563 418 918 2588 765 940 236 Spaces Moved 3209 | 72 362 32 329 342 383 970 288 347 84 Core 6 | 5 . . . . . . . . 1 Treads 1970 | 9 . . 2 . 271 970 288 347 83 Legs . | . . . . . . . . . . Wheels 1233 | 58 362 32 327 342 112 . . . . Hover . | . . . . . . . . . . Flight . | . . . . . . . . . . Fastest Speed 50 | 50 95 155 110 120 120 240 240 240 240 Average Speed 195 | 90 141 155 118 120 206 240 240 240 261 Slowest Speed 1950 | 160 155 155 320 120 240 240 240 240 1950 Overloaded Moves . | . . . . . . . . . . Propulsion Burnouts . | . . . . . . . . . . Robots Hopped . | . . . . . . . . . . Cave-ins Triggered . | . . . . . . . . . . Exploration Rate (%) 44 | 5 66 9 37 82 40 25 52 50 76 Regions Visited 9 Branch Regions 5 Pre-discovered Areas 7 | . 2 . . 1 1 . 1 1 1 Known Exits Taken 3 | . . . . . . 1 1 1 . Unknown Exits Taken 6 | 1 1 1 1 1 1 . . . . Scrap Searched 3 | . . . . 1 . . 1 1 . Spaces Dug 88 | . . . . . 17 . 53 18 . Terrain Destroyed 338 | . 26 . 9 . 96 1 92 70 44 Melee 3 | . . . . . . . . 3 . Projectile 1 | . 1 . . . . . . . . AOE 333 | . 25 . 9 . 96 . 92 67 44 Terrain Rammed 2 | . . . . . . 2 . . . Walls Destroyed 1 | . . . . . . 1 . . . Machines Disabled . | . . . . . . . . . . Actions | -11 -10 -10 -9 -9 -8 -7 -7 -7 -7 --------- Run | Scr Mat Min Mat Min Mat Fac Low Low Dat Total 3787 | 95 443 38 451 348 466 1111 326 412 97 Wait 96 | 1 12 3 33 2 10 9 . 26 . Move 3200 | 71 361 31 328 341 382 969 287 346 84 Hop . | . . . . . . . . . . Pick Up 74 | 6 19 . 14 1 14 15 3 2 . Fast Attach 26 | 7 1 . 6 . 5 6 . 1 . Attach 22 | . 2 . 3 . 4 6 2 2 3 Detach 1 | . . . 1 . . . . . . Swap 72 | . 10 . 10 1 9 17 12 12 1 Drop 72 | . 7 . 22 2 14 23 1 . 3 Fire 208 | 9 31 4 34 1 27 61 21 15 5 Melee 9 | . . . . . . . . 8 1 Ram 3 | 1 . . . . . 2 . . . Kick . | . . . . . . . . . . Crush 2 | . . . . . 1 1 . . . Escape Stasis . | . . . . . . . . . . Rewire 2 | . . . . . . 2 . . . Trap . | . . . . . . . . . . Miscellaneous . | . . . . . . . . . . Route ------- -11/Scrapyard -10/Materials (discovered 5 exits: *Mat x3 / [*Min x2]) -10/Mines -9/Materials -9/Mines -8/Materials (discovered 2 exits: *Fac x2) -7/Factory (discovered 4 exits: *Fac x2 / *Sto / *Low) -7/Lower Caves -7/Lower Caves (discovered 2 exits: *Fac / *Dat) -7/Data Miner (discovered 1 exit: [*Pro]) History --------- Turn | Location | Event 9 | -11/Scrapyard | Discovered new exit (range 15) 109 | -11/Scrapyard | Entered Materials 136 | -10/Materials | Discovered new exit (range 10) 192 | -10/Materials | Discovered new exit (range 13) 310 | -10/Materials | Build established: Mutant 423 | -10/Materials | Core integrity fell below 50% 469 | -10/Materials | Discovered new exit (range 8) 519 | -10/Materials | Discovered new exit (range 21) 655 | -10/Materials | Discovered new exit (range 10) 750 | -10/Materials | Entered Mines 787 | -10/Mines | Discovered new exit (range 5) 801 | -10/Mines | Assembled infested the area 814 | -10/Mines | Entered Materials 814 | -9/Materials | Evolved 2 slots: Propulsion x1, Utility x1 945 | -9/Materials | Central database locked down 1351 | -9/Materials | Discovered new exit (range 13) 1377 | -9/Materials | Entered Mines 1391 | -9/Mines | Learned location of Storage (-7) 1444 | -9/Mines | Discovered new exit (range 10) 1461 | -9/Mines | Assisted by bots powering up and referring to "LRC-V3" 1656 | -9/Mines | Found a damaged Exp. Sensor Array with a note attached 1659 | -9/Mines | Found Prototype Device 1795 | -9/Mines | Entered Materials 1795 | -8/Materials | Accompanied by 2 allies 1795 | -8/Materials | Evolved 2 slots: Utility x2 2257 | -8/Materials | Build established: Scavenger-Mutant 2307 | -8/Materials | Discovered new exit (range 16) 2704 | -8/Materials | Discovered new exit (range 4) 2713 | -8/Materials | Entered Factory 2713 | -7/Factory | Evolved 2 slots: Power x1, Weapon x1 3016 | -7/Factory | Build established: Scavenger-Tank 3721 | -7/Factory | Discovered new exit (range 9) 3786 | -7/Factory | Discovered new exit (range 10) 4714 | -7/Factory | Discovered new exit (range 6) 4850 | -7/Factory | Identified exit to Factory 5040 | -7/Factory | Identified exit to Storage 5248 | -7/Factory | Discovered new exit (range 15) 5299 | -7/Factory | Identified exit to Lower Caves 5301 | -7/Factory | Entered Lower Caves 5306 | -7/Lower Caves | Encountered a Warlord checkpoint 5344 | -7/Lower Caves | Learned Factory stockpile data 5739 | -7/Lower Caves | Attracted the attention of an 0b10 checkpoint 5830 | -7/Lower Caves | Discovered new exit (range 15) 5834 | -7/Lower Caves | Build established: Scavenger-Skirmisher 5864 | -7/Lower Caves | Identified exit to Lower Caves 6066 | -7/Lower Caves | Entered another Lower Caves area 6088 | -7/Lower Caves | Discovered exit to Factory (range 16) 6105 | -7/Lower Caves | Learned location of Extension (-4) 6291 | -7/Lower Caves | Lost 3 parts (2p1n) 6777 | -7/Lower Caves | System corruption reached 10% 6984 | -7/Lower Caves | Discovered new exit (range 10) 7004 | -7/Lower Caves | Identified exit to Data Miner 7006 | -7/Lower Caves | Entered Data Miner 7008 | -7/Data Miner | Discovered new exit (range 7) 7054 | -7/Data Miner | Met Data Miner 7114 | -7/Data Miner | Learned location of Section 7 (-2) 7114 | -7/Data Miner | Acquired the access code to Warlord's prototype stash 7138 | -7/Data Miner | Received God Mode back door access code from Data Miner 7190 | -7/Data Miner | Data Conduit disabled 7235 | -7/Data Miner | Core integrity fell below 50% 7238 | -7/Data Miner | Core integrity fell below 20% 7242 | -7/Data Miner | Destroyed by Enhanced Grunt with Neutron Cannon Last Messages --------------- 07190_ Sneak attack on Data Miner. 07190_ Destroyed Prototype Hackware. 07190_ Data Miner system corrupted by crushing effect. 07190_ Data Miner disappears through a trap door. 07203_ System corrupted: Imp. Cooling System rejected. 07205_ Lyr. Light Armor Plating destroyed. 07208_ Lgt. Treads destroyed. 07215_ Mic. Nuclear Core destroyed. 07218_ The unstable cave ceiling collapses. 07219_ Lgt. Treads destroyed. 07220_ The unstable cave ceiling collapses. 07223_ Enhanced Grunt destroyed. 07223_ Destroyed Adv. Heat Sink. 07224_ System corrupted: Heat flow error (+164). 07224_ Lgt. Treads destroyed. 07231_ Hrd. Heavy Armor Plating destroyed. 07233_ Hvy. Rocket Launcher destroyed. 07233_ Powered Hammer destroyed. 07234_ Lgt. Nuclear Core destroyed. 07236_ The unstable cave ceiling collapses. Map ----- +----------------------------------------------------+ | | | | | | | | | | | | | | | | | | | | | | | | | | | | | | | | | | | | | ?????????????????????????????????????????? | | ?????????????????????????????????????????? | | ???????????????#?????????????????????????? | | ??????????????? #######??????????????????? | | ??????????????## ##?????????????####? | | ??????#########; # ##??????????### #? | | ?????""""""""" ##????????## #? | | ????""""""""" [@ = ########## < ##? | | ???"""""""" [ %g g ## | | ???""""" ! !g | | ???""""""" | | ???""""" | | ???""""""" | | ???""""""" """""""""## | | ???"""""""" # # ##########? | | ????""""""" ???????????? | | ?????"""""""" # ???????????? | | ??????######"## ## ###?#????????????? | | ???????????#"### "#####????????????????? | | ???????????#"### "#????????????????????? | | ???????????#"?# "#????????????????????? | | ???????????#"## "#????????????????????? | | ?????????????# "#????????????????????? | | ?????????????### "#????????????????????? | | ???????????????# "##???????????????????? | | ??????????????## ""#???????????????????? | | ???????????#?## ""#???????????????????? | | ??????????##"#"X ""#???????????????????? | | ??????????""""" "####????????????????? | | ??????????""""" X"""""????????????????? | | ??????????##"#"X "##"#????????????????? | | ???????????#?## X""""#????????????????? | +----------------------------------------------------+ Best States ------------- Heat Dissipation 61 Energy Generation 26 Energy Capacity 340 Matter Stores 300 Matter Capacity 300 Sight Range 16 Terrain Scan Range 16 Terrain Scan Density 210 Armor Coverage 600 Evasion (%) 44 Targeting Accuracy 6 Recoil Reduction 3 Offensive Hacking 10 Authchip Count 1 Item Schematics ----------------- Hrd. Light Armor Plating | -7/Factory | Scanalyzed Coil Gun | -7/Factory | Hacked Combat Drone Bay | -7/Data Miner | Free Lgt. Regenerative Plating | -7/Data Miner | Free Cld. Aerolev Unit | -7/Data Miner | Free Exp. Utility Shielding | -7/Data Miner | Free Imp. Heavy Laser | -7/Data Miner | Free Nuclear Pulse Array | -7/Data Miner | Free Adv. Shield Generator | -7/Data Miner | Free Hyp. Gauss Cannon | -7/Data Miner | Free Energy Well | -7/Data Miner | Free Rnf. Fission Core | -7/Data Miner | Free Centrium Wheel | -7/Data Miner | Free Robot Schematics ------------------ B-48 Gladiator | -7/Data Miner | Free R-10 Processor | -7/Data Miner | Free W-25 Informer | -7/Data Miner | Free H-55 Commando | -7/Data Miner | Free H-66 Slayer | -7/Data Miner | Free B-60 Warrior | -7/Data Miner | Free Fabricated ------------ Nothing Alien Tech Used ----------------- None Achievements -------------- None Challenges ------------ None Game ------ Seed HardcellRocketRouter Manual? 0 Play Time 00:49:45 Cumulative 164.8 hours Start 2022.12.22 @ 15:28:29 End 2022.12.22 @ 16:16:54 Sessions 1 Manual Loads 0 Difficulty Rogue Special Mode None Game No. 253 Rogue 253 Adventurer 0 Explorer 0 Win Type - Total 3 Types 1/0/2/0/0/0/0/0/0 Lore% 68 Gallery% 77 Achievement% 58 Wizard Run 0 Options --------- ASCII 0 Keyboard 0 Movement Numpad Keybinds 0 Fullscreen 1 Font 18/SmallcapsGlow Map View 76x50 Tactical HUD 1 Map Filters NONE Filters NONE Steam 1 RUN: 0ea537dc-3b2a-4539-95da-77a0f0f39a61